fUSD/lending_fUSD_20250530
["ID","MTS","AMOUNT","RATE_DAILY","PERIOD"]
[363195533,1748619155098,-857.17,0.00026027,2]
[363195534,1748619155108,-1626.19,0.00026027,2]
[363195535,1748619155118,-392.99968767,0.00026027,2]
[363195536,1748619155128,-634.02,0.00026027,2]
[363195537,1748619155138,-1507.45,0.00026027,2]
[363195538,1748619155147,-1283.49,0.00026027,2]
[363195539,1748619155157,-441.96,0.00026027,2]
[363195540,1748619155166,-532.67,0.00026027,2]
[363195541,1748619155175,-1018.57,0.00026027,2]
[363195542,1748619155185,-1122.87,0.00026027,2]
[363195543,1748619155194,-3197.32,0.00026027,2]
[363195544,1748619155204,-2066.87,0.00026027,2]
[363195545,1748619155213,-489.48,0.00026027,2]
[363195546,1748619155223,-461.31,0.00026027,2]
[363195547,1748619155233,-429.62,0.00026027,2]
[363195548,1748619155243,-3670.01,0.00026027,2]
[363195549,1748619155253,-805.58,0.00026027,2]
[363195550,1748619155262,-1386.9,0.00026027,2]
[363195551,1748619155272,-894.1,0.00026027,2]
[363195552,1748619155281,-2960.24,0.00026027,2]
[363195553,1748619155291,-1963.11,0.00026027,2]
[363195554,1748619155300,-906.34,0.00026027,2]
[363195555,1748619155310,-7808.56,0.00026027,2]
[363195556,1748619155324,-1068.95,0.00026027,2]
[363195557,1748619155334,-975.57,0.00026027,2]
[363195558,1748619155344,-1446.02,0.00026027,2]
[363195559,1748619155354,-1309.89,0.00026027,2]
[363195560,1748619155364,-5878.54,0.00026027,2]
[363195561,1748619155375,-591.35,0.00026027,2]
[363195562,1748619155384,-4452.28,0.00026027,2]
[363195563,1748619155394,-982.46,0.00026027,2]
[363195564,1748619155404,-8491.51,0.00026027,2]
[363195565,1748619155414,-958.4,0.00026027,2]
[363195566,1748619155423,-139506.04,0.00026027,2]
[363195567,1748619155434,-1033.36,0.00026027,2]
[363195568,1748619155444,-1343.03,0.00026027,2]
[363195569,1748619155454,-657.44,0.00026027,2]
[363195570,1748619155463,-453.46,0.00026027,2]
[363195571,1748619155685,-1623.73,0.00026027,2]
[363195572,1748619155696,-1032.71,0.00026027,2]
[363195573,1748619155706,-3547.4,0.00026027,2]
[363195574,1748619155715,-458.54,0.00026027,2]
[363195575,1748619155726,-982.85,0.00026027,2]
[363195576,1748619155735,-3804.58,0.00026027,2]
[363195577,1748619155745,-1623.36,0.00026027,2]
[363195578,1748619155755,-37354.79,0.00026027,2]
[363195579,1748619155765,-1005.97,0.00026027,2]
[363195580,1748619155775,-937.17,0.00026027,2]
[363195581,1748619155784,-753.84,0.00026027,2]
[363195582,1748619155794,-1215.02,0.00026027,2]
[363195583,1748619155804,-10069.56,0.00026027,2]
[363195584,1748619155819,-1684.99,0.00026027,2]
[363195585,1748619155828,-2424.56,0.00026027,2]
[363195586,1748619155838,-7476.47,0.00026027,2]
[363195587,1748619155848,-519.37,0.00026027,2]
[363195588,1748619155859,-628.41,0.00026027,2]
[363195589,1748619155868,-868.93,0.00026027,2]
[363195590,1748619155878,-422.51,0.00026027,2]
[363195591,1748619155888,-1449.88,0.00026027,2]
[363195592,1748619155899,-14516.45,0.00026027,2]
[363195593,1748619155908,-4266.56,0.00026027,2]
[363195594,1748619155918,-1548.49,0.00026027,2]
[363195595,1748619155927,-830.49,0.00026027,2]
[363195596,1748619155937,-1884.76,0.00026027,2]
[363195597,1748619155946,-542.86,0.00026027,2]
[363195598,1748619155956,-593.44,0.00026027,2]
[363195599,1748619155966,-510.86,0.00026027,2]
[363195600,1748619155975,-1709.24,0.00026027,2]
[363195601,1748619155986,-1978.38,0.00026027,2]
[363195602,1748619155995,-2758.03,0.00026027,2]
[363195603,1748619156004,-881.72,0.00026027,2]
[363195604,1748619156014,-29722.14,0.00026027,2]
[363195605,1748619156024,-1406.27,0.00026027,2]
[363195606,1748619156033,-1169.42,0.00026027,2]
[363195607,1748619156043,-826.36,0.00026027,2]
[363195608,1748619156052,-1544.23,0.00026027,2]
[363195609,1748619156061,-1175.33,0.00026027,2]
[363195610,1748619156073,-3295.64,0.00026027,2]
[363195611,1748619156082,-1761.11,0.00026027,2]
[363195612,1748619156092,-3573.53,0.00026027,2]
[363195613,1748619156101,-738.85,0.00026027,2]
[363195614,1748619156110,-1034.84,0.00026027,2]
[363195615,1748619156120,-1151.03,0.00026027,2]
[363195616,1748619156130,-9251.83,0.00026027,2]
[363195617,1748619156139,-660.71,0.00026027,2]
[363195618,1748619156149,-420.0,0.00026027,2]
[363195619,1748619156159,-490.63,0.00026027,2]
[363195620,1748619156168,-720.83,0.00026027,2]
[363195621,1748619156178,-772.03,0.00026027,2]
[363195622,1748619156187,-1360.32,0.00026027,2]
[363195623,1748619156197,-723.88,0.00026027,2]
[363195624,1748619156206,-567.24,0.00026027,2]
[363195625,1748619156216,-2486.32,0.00026027,2]
[363195626,1748619156226,-4470.51,0.00026027,2]
[363195627,1748619156235,-1446.13,0.00026027,2]
[363195628,1748619156245,-2304.2,0.00026027,2]
[363195629,1748619156254,-1389.12,0.00026027,2]
[363195630,1748619156264,-1054.71,0.00026027,2]
[363195631,1748619156273,-990.01,0.00026027,2]
[363195632,1748619156283,-1680.37,0.00026027,2]
[363195633,1748619156292,-521.76,0.00026027,2]
[363195634,1748619156301,-4095.54,0.00026027,2]
[363195635,1748619156311,-1486.66,0.00026027,2]
[363195636,1748619156322,-1336.51,0.00026027,2]
[363195637,1748619156332,-1487.37,0.00026027,2]
[363195638,1748619156342,-2771.35,0.00026027,2]
[363195639,1748619156352,-4189.49,0.00026027,2]
[363195640,1748619156362,-629.45,0.00026027,2]
[363195641,1748619156371,-2997.14,0.00026027,2]
[363195642,1748619156380,-1026.77,0.00026027,2]
[363195643,1748619156390,-1125.7,0.00026027,2]
[363195644,1748619156400,-614.16,0.00026027,2]
[363195645,1748619156409,-7561.37,0.00026027,2]
[363195646,1748619156419,-1258.89,0.00026027,2]
[363195647,1748619156428,-420.0,0.00026027,2]
[363195648,1748619156436,-1075.29,0.00026027,2]
[363195649,1748619156446,-760.57,0.00026027,2]
[363195650,1748619156456,-3180.63,0.00026027,2]
[363195651,1748619156466,-1927.78,0.00026027,2]
[363195652,1748619156475,-1656.75,0.00026027,2]
[363195653,1748619156485,-641.68,0.00026027,2]
[363195654,1748619156495,-420.0,0.00026027,2]
[363195655,1748619156505,-1318.91,0.00026027,2]
[363195656,1748619156515,-1139.98,0.00026027,2]
[363195657,1748619156525,-798.56,0.00026027,2]
[363195658,1748619156535,-1082.24,0.00026027,2]
[363195659,1748619156545,-718.05,0.00026027,2]
[363195660,1748619156555,-3419.97,0.00026027,2]
[363195661,1748619156565,-671.13,0.00026027,2]
[363195662,1748619156574,-1848.95,0.00026027,2]
[363195663,1748619156584,-2486.27,0.00026027,2]
[363195664,1748619156595,-1074.24,0.00026027,2]
[363195665,1748619156604,-1239.27,0.00026027,2]
[363195666,1748619156615,-420.0,0.00026027,2]
[363195667,1748619156624,-1822.33,0.00026027,2]
[363195668,1748619156634,-4083.38,0.00026027,2]
[363195669,1748619156646,-1501.86,0.00026027,2]
[363195670,1748619156656,-1358.16,0.00026027,2]
[363195671,1748619156666,-4025.56,0.00026027,2]
[363195672,1748619156681,-2713.7,0.00026027,2]
[363195673,1748619156692,-4868.11,0.00026027,2]
[363195674,1748619156702,-489.31,0.00026027,2]
[363195675,1748619156712,-742.91,0.00026027,2]
[363195676,1748619156722,-802.33,0.00026027,2]
[363195677,1748619156732,-937.93,0.00026027,2]
[363195678,1748619156741,-2531.82,0.00026027,2]
[363195679,1748619156751,-420.0,0.00026027,2]
[363195680,1748619156761,-420.0,0.00026027,2]
[363195681,1748619156771,-830.27,0.00026027,2]
[363195682,1748619156780,-703.73,0.00026027,2]
[363195683,1748619156790,-420.0,0.00026027,2]
[363195684,1748619156800,-7051.39,0.00026027,2]
[363195685,1748619156809,-622.77,0.00026027,2]
[363195686,1748619156823,-1538.8,0.00026027,2]
[363195687,1748619156833,-19030.44,0.00026027,2]
[363195688,1748619156842,-1325.56,0.00026027,2]
[363195689,1748619156852,-2716.47,0.00026027,2]
[363195690,1748619156863,-702.43,0.00026027,2]
[363195691,1748619156872,-735.86,0.00026027,2]
[363195692,1748619156882,-961.82,0.00026027,2]
[363195693,1748619156891,-760.22,0.00026027,2]
[363195694,1748619156903,-2783.11,0.00026027,2]
[363195695,1748619156913,-676.42,0.00026027,2]
[363195696,1748619156922,-734.54,0.00026027,2]
[363195697,1748619156932,-1264.47,0.00026027,2]
[363195698,1748619156941,-1663.09,0.00026027,2]
[363195699,1748619156951,-450.49,0.00026027,2]
[363195700,1748619156960,-6908.64,0.00026027,2]
[363195701,1748619156969,-1803.22,0.00026027,2]
[363195702,1748619156979,-492.56000001,0.00026027,2]
[363195703,1748619156988,-807.7,0.00026027,2]
[363195704,1748619156998,-3069.28,0.00026027,2]
[363195705,1748619157007,-466.47,0.00026027,2]
[363195706,1748619157017,-497.91494061,0.00026027,2]
[363195707,1748619157026,-1271.23,0.00026027,2]
[363195708,1748619157035,-500.9141375,0.00026027,2]
[363195709,1748619157044,-500.9141375,0.00026027,2]
[363195710,1748619157054,-309.32410405,0.00026027,2]
[363195711,1748619157063,-150.0,0.00026073,2]
[363195712,1748619157074,-6100.0,0.00026074,2]
[363195713,1748619157084,-500.0,0.00026074,2]
[363195714,1748619157093,-723.0,0.00026074,2]
[363195715,1748619157102,-205.0,0.00026097,10]
[363195716,1748619157111,-2000.0,0.00026125,2]
[363195717,1748619157121,-500.0,0.0002613,2]
[363195718,1748619157130,-500.0,0.00026134,2]
[363195719,1748619157139,-309.32410405,0.00026137,2]
[363195720,1748619157148,-165.09,0.00026151,2]
[363195721,1748619157157,-2000.0,0.00026155,2]
[363195722,1748619157166,-1500.0,0.00026163,2]
[363195723,1748619157176,-17213.75,0.000262,2]
[363195724,1748619157185,-5612.24,0.000262,2]
[363195725,1748619157194,-40000.0,0.000262,7]
[363195726,1748619157212,-150.0,0.00026225,2]
[363195727,1748619157228,-980.858598,0.00026225,2]
[363195728,1748619157247,-1078.45113,0.00026225,2]
[363195729,1748619157268,-1500.0,0.00026239,2]
[363195730,1748619157283,-309.32410405,0.00026247,2]
[363195731,1748619157303,-231.47552679,0.00026257,2]
[363195732,1748619157324,-239.84119403,0.00026257,2]
[363195733,1748619157344,-500.0,0.00026279,2]
[363195734,1748619157362,-2000.0,0.00026293,2]
[363195735,1748619157383,-175.51,0.000263,2]
[363195736,1748619157400,-420.0,0.00026301,2]
[363195737,1748619157415,-420.0,0.00026301,2]
[363195738,1748619157432,-441.8,0.00026301,2]
[363195739,1748619157449,-591.36,0.00026301,2]
[363195740,1748619157465,-468.16,0.00026301,2]
[363195741,1748619157480,-451.1,0.00026301,2]
[363195742,1748619157496,-420.3,0.00026301,2]
[363195743,1748619157511,-420.0,0.00026301,2]
[363195744,1748619157527,-853.41,0.00026301,2]
[363195745,1748619157543,-420.0,0.00026301,2]
[363195746,1748619157560,-525.07,0.00026301,2]
[363195747,1748619157577,-265.48097539,0.00026301,2]
[363195748,1748619157593,-502.76,0.00026301,2]
[363195749,1748619157609,-1167.56,0.00026301,2]
[363195750,1748619157626,-769.78,0.00026301,2]
[363195751,1748619157643,-499.23,0.00026301,2]
[363195752,1748619157662,-420.0,0.00026301,2]
[363195753,1748619157679,-531.83,0.00026301,2]
[363195754,1748619157694,-420.0,0.00026301,2]
[363195755,1748619157709,-479.53,0.00026301,2]
[363195756,1748619157725,-753.24,0.00026301,2]
[363195757,1748619157740,-265.73,0.00026301,2]
[363195758,1748619157755,-476.72,0.00026301,2]
[363195759,1748619157770,-420.0,0.00026301,2]
[363195760,1748619157786,-571.1,0.00026301,2]
[363195761,1748619157801,-420.0,0.00026301,2]
[363195762,1748619157817,-908.97,0.00026301,2]
[363195763,1748619157834,-435.55059774,0.00026301,2]
[363195764,1748619157850,-420.0,0.00026301,2]
[363195765,1748619157865,-432.46,0.00026301,2]
[363195766,1748619157881,-420.0,0.00026301,2]
[363195767,1748619157901,-420.0,0.00026301,2]
[363195768,1748619157916,-420.0,0.00026301,2]
[363195769,1748619157932,-2098.6,0.00026301,2]
[363195770,1748619157947,-490.07,0.00026301,2]
[363195771,1748619157962,-770.69,0.00026301,2]
[363195772,1748619157977,-420.0,0.00026301,2]
[363195773,1748619157992,-890.15,0.00026301,2]
[363195774,1748619158008,-420.86,0.00026301,2]
[363195775,1748619158023,-426.87,0.00026301,2]
[363195776,1748619158038,-424.91,0.00026301,2]
[363195777,1748619158055,-429.06,0.00026301,2]
[363195778,1748619158072,-758.53,0.00026301,2]
[363195779,1748619158089,-420.0,0.00026301,2]
[363195780,1748619158100,-772.94,0.00026301,2]
[363195781,1748619158110,-420.0,0.00026301,2]
[363195782,1748619158119,-427.85,0.00026301,2]
[363195783,1748619158129,-420.0,0.00026301,2]
[363195784,1748619158139,-456.87,0.00026301,2]
[363195785,1748619158149,-420.0,0.00026301,2]
[363195786,1748619158159,-420.0,0.00026301,2]
[363195787,1748619158168,-420.0,0.00026301,2]
[363195788,1748619158179,-420.0,0.00026301,2]
[363195789,1748619158188,-777.89,0.00026301,2]
[363195790,1748619158197,-863.65,0.00026301,2]
[363195791,1748619158207,-1819.65,0.00026301,2]
[363195792,1748619158216,-1212.65,0.00026301,2]
[363195793,1748619158226,-1175.81,0.00026301,2]
[363195794,1748619158235,-553.05,0.00026301,2]
[363195795,1748619158245,-796.08,0.00026301,2]
[363195796,1748619158254,-523.03,0.00026301,2]
[363195797,1748619158264,-501.69,0.00026301,2]
[363195798,1748619158273,-1811.35,0.00026301,2]
[363195799,1748619158282,-420.0,0.00026301,2]
[363195800,1748619158292,-822.17,0.00026301,2]
[363195801,1748619158301,-496.62,0.00026301,2]
[363195802,1748619158310,-641.0,0.00026301,2]
[363195803,1748619158322,-847.29,0.00026301,2]
[363195804,1748619158332,-420.0,0.00026301,2]
[363195805,1748619158342,-420.0,0.00026301,2]
[363195806,1748619158351,-1102.55,0.00026301,2]
[363195807,1748619158360,-443.43,0.00026301,2]
[363195808,1748619158370,-420.0,0.00026301,2]
[363195809,1748619158379,-443.13,0.00026301,2]
[363195810,1748619158388,-751.91,0.00026301,2]
[363195811,1748619158398,-520.5099374,0.00026301,2]
[363195812,1748619158407,-518.42,0.00026301,2]
[363195813,1748619158416,-1711.43,0.00026301,2]
[363195814,1748619158426,-841.83,0.00026301,2]
[363195815,1748619158435,-1199.0,0.00026301,2]
[363195816,1748619158445,-508.53,0.00026301,2]
[363195817,1748619158455,-948.67,0.00026301,2]
[363195818,1748619158464,-610.77,0.00026301,2]
[363195819,1748619158474,-2171.03,0.00026301,2]
[363195820,1748619158483,-507.05536986,0.00026301,2]
[363195821,1748619158493,-945.97,0.00026301,2]
[363195822,1748619158503,-572.48,0.00026301,2]
[363195823,1748619158513,-1319.71,0.00026301,2]
[363195824,1748619158522,-456.76,0.00026301,2]
[363195825,1748619158532,-1456.24,0.00026301,2]
[363195826,1748619158541,-636.09,0.00026301,2]
[363195827,1748619158551,-743.92,0.00026301,2]
[363195828,1748619158560,-853.5,0.00026301,2]
[363195829,1748619158571,-1258.56,0.00026301,2]
[363195830,1748619158580,-652.14,0.00026301,2]
[363195831,1748619158589,-569.93,0.00026301,2]
[363195832,1748619158599,-1419.49,0.00026301,2]
[363195833,1748619158608,-584.74,0.00026301,2]
[363195834,1748619158618,-755.51,0.00026301,2]
[363195835,1748619158628,-582.04,0.00026301,2]
[363195836,1748619158637,-420.0,0.00026301,2]
[363195837,1748619158648,-781.6,0.00026301,2]
[363195838,1748619158657,-1041.01,0.00026301,2]
[363195839,1748619158667,-1369.52,0.00026301,2]
[363195840,1748619158677,-474.65,0.00026301,2]
[363195841,1748619158687,-463.6,0.00026301,2]
[363195842,1748619158697,-1379.11,0.00026301,2]
[363195843,1748619158707,-420.0,0.00026301,2]
[363195844,1748619158717,-666.7,0.00026301,2]
[363195845,1748619158727,-576.82,0.00026301,2]
[363195846,1748619158737,-1319.43,0.00026301,2]
[363195847,1748619158747,-693.89,0.00026301,2]
[363195848,1748619158756,-741.8,0.00026301,2]
[363195849,1748619158766,-561.65,0.00026301,2]
[363195850,1748619158775,-1160.92,0.00026301,2]
[363195851,1748619158785,-472.93,0.00026301,2]
[363195852,1748619158795,-1166.17,0.00026301,2]
[363195853,1748619158804,-1207.82,0.00026301,2]
[363195854,1748619158814,-1168.26,0.00026301,2]
[363195855,1748619158827,-420.0,0.00026301,2]
[363195856,1748619158837,-420.0,0.00026301,2]
[363195857,1748619158847,-466.98,0.00026301,2]
[363195858,1748619158857,-784.43,0.00026301,2]
[363195859,1748619158867,-1364.89,0.00026301,2]
[363195860,1748619158876,-723.56,0.00026301,2]
[363195861,1748619158886,-801.75,0.00026301,2]
[363195862,1748619158896,-604.61,0.00026301,2]
[363195863,1748619158906,-587.51,0.00026301,2]
[363195864,1748619158916,-635.16,0.00026301,2]
[363195865,1748619158925,-1137.25,0.00026301,2]
[363195866,1748619158935,-786.55,0.00026301,2]
[363195867,1748619158944,-862.94,0.00026301,2]
[363195868,1748619158954,-420.0,0.00026301,2]
[363195869,1748619158964,-523.95,0.00026301,2]
[363195870,1748619158973,-1160.03,0.00026301,2]
[363195871,1748619158983,-673.65,0.00026301,2]
[363195872,1748619158992,-931.25,0.00026301,2]
[363195873,1748619159002,-420.0,0.00026301,2]
[363195874,1748619159012,-552.42,0.00026301,2]
[363195875,1748619159021,-459.7,0.00026301,2]
[363195876,1748619159030,-1724.07,0.00026301,2]
[363195877,1748619159040,-420.0,0.00026301,2]
[363195878,1748619159049,-600.48,0.00026301,2]
[363195879,1748619159059,-726.29,0.00026301,2]
[363195880,1748619159071,-472.86,0.00026301,2]
[363195881,1748619159080,-1073.36,0.00026301,2]
[363195882,1748619159939,-832.22,0.00026301,2]
[363195883,1748619159960,-576.09,0.00026301,2]
[363195884,1748619159980,-1371.43,0.00026301,2]
[363195885,1748619159999,-1079.44,0.00026301,2]
[363195886,1748619160016,-538.33,0.00026301,2]
[363195887,1748619160034,-590.55,0.00026301,2]
[363195888,1748619160047,-971.8,0.00026301,2]
[363195889,1748619160057,-476.32,0.00026301,2]
[363195890,1748619160068,-550.23,0.00026301,2]
[363195891,1748619160077,-420.0,0.00026301,2]
[363195892,1748619160087,-2381.24,0.00026301,2]
[363195893,1748619160096,-523.75,0.00026301,2]
[363195894,1748619160106,-1073.24,0.00026301,2]
[363195895,1748619160115,-659.08,0.00026301,2]
[363195896,1748619160125,-535.46,0.00026301,2]
[363195897,1748619160135,-420.0,0.00026301,2]
[363195898,1748619160145,-569.05,0.00026301,2]
[363195899,1748619160154,-165.28389227,0.00026301,2]
[363195900,1748619160164,-808.94,0.00026301,2]
[363195901,1748619160173,-1940.81,0.00026301,2]
[363195902,1748619160183,-627.54,0.00026301,2]
[363195903,1748619160193,-463.09,0.00026301,2]
[363195904,1748619160203,-297.55843833,0.00026301,2]
[363195905,1748619160212,-1123.75,0.00026301,2]
[363195906,1748619160222,-487.89,0.00026301,2]
[363195907,1748619160232,-539.2,0.00026301,2]
[363195908,1748619160242,-420.0,0.00026301,2]
[363195909,1748619160251,-420.0,0.00026301,2]
[363195910,1748619160261,-1124.04,0.00026301,2]
[363195911,1748619160271,-553.55,0.00026301,2]
[363195912,1748619160280,-1448.39,0.00026301,2]
[363195913,1748619160290,-1053.3,0.00026301,2]
[363195914,1748619160299,-584.13,0.00026301,2]
[363195915,1748619160309,-1192.82,0.00026301,2]
[363195916,1748619160320,-613.48,0.00026301,2]
[363195917,1748619160329,-420.0,0.00026301,2]
[363195918,1748619160338,-491.19,0.00026301,2]
[363195919,1748619160348,-561.99,0.00026301,2]
[363195920,1748619160357,-466.46,0.00026301,2]
[363195921,1748619160367,-1678.06,0.00026301,2]
[363195922,1748619160377,-420.0,0.00026301,2]
[363195923,1748619160387,-561.50561382,0.00026301,2]
[363195924,1748619160396,-1400.08,0.00026301,2]
[363195925,1748619160405,-600.46,0.00026301,2]
[363195926,1748619160415,-626.74,0.00026301,2]
[363195927,1748619160424,-729.19,0.00026301,2]
[363195928,1748619160433,-1178.79,0.00026301,2]
[363195929,1748619160443,-849.19,0.00026301,2]
[363195930,1748619160454,-1833.03,0.00026301,2]
[363195931,1748619160464,-558.24,0.00026301,2]
[363195932,1748619160474,-633.87,0.00026301,2]
[363195933,1748619160483,-465.46,0.00026301,2]
[363195934,1748619160493,-420.0,0.00026301,2]
[363195935,1748619160502,-3634.58,0.00026301,2]
[363195936,1748619160511,-1085.24,0.00026301,2]
[363195937,1748619160521,-2016.38,0.00026301,2]
[363195938,1748619160531,-609.8,0.00026301,2]
[363195939,1748619160541,-1168.36,0.00026301,2]
[363195940,1748619160550,-5361.86,0.00026301,2]
[363195941,1748619160560,-2127.16,0.00026301,2]
[363195942,1748619160571,-1484.06,0.00026301,2]
[363195943,1748619160581,-1109.67,0.00026301,2]
[363195944,1748619160591,-614.8,0.00026301,2]
[363195945,1748619160600,-575.02,0.00026301,2]
[363195946,1748619160610,-674.8,0.00026301,2]
[363195947,1748619160621,-562.44,0.00026301,2]
[363195948,1748619160630,-420.0,0.00026301,2]
[363195949,1748619160640,-1824.08,0.00026301,2]
[363195950,1748619160650,-420.0,0.00026301,2]
[363195951,1748619160660,-904.81,0.00026301,2]
[363195952,1748619160670,-490.58,0.00026301,2]
[363195953,1748619160679,-7075.98,0.00026301,2]
[363195954,1748619160688,-723.21,0.00026301,2]
[363195955,1748619160698,-420.0,0.00026301,2]
[363195956,1748619160707,-1561.66,0.00026301,2]
[363195957,1748619160717,-9812.16,0.00026301,2]
[363195958,1748619160726,-1096.87,0.00026301,2]
[363195959,1748619160736,-1075.43,0.00026301,2]
[363195960,1748619160746,-622.82,0.00026301,2]
[363195961,1748619160755,-1429.73,0.00026301,2]
[363195962,1748619160765,-915.42,0.00026301,2]
[363195963,1748619160774,-11863.32,0.00026301,2]
[363195964,1748619160784,-1946.94,0.00026301,2]
[363195965,1748619160793,-594.91,0.00026301,2]
[363195966,1748619160803,-1167.97,0.00026301,2]
[363195967,1748619160812,-797.36,0.00026301,2]
[363195968,1748619160826,-5682.0,0.00026301,2]
[363195969,1748619160836,-524.77,0.00026301,2]
[363195970,1748619160845,-1550.77,0.00026301,2]
[363195971,1748619160854,-974.63,0.00026301,2]
[363195972,1748619160865,-655.87,0.00026301,2]
[363195973,1748619160875,-702.81,0.00026301,2]
[363195974,1748619160884,-600.66,0.00026301,2]
[363195975,1748619160894,-1024.75,0.00026301,2]
[363195976,1748619160905,-609.69,0.00026301,2]
[363195977,1748619160915,-420.0,0.00026301,2]
[363195978,1748619160924,-1076.37,0.00026301,2]
[363195979,1748619160934,-464.14,0.00026301,2]
[363195980,1748619160943,-420.0,0.00026301,2]
[363195981,1748619160953,-1708.68,0.00026301,2]
[363195982,1748619160963,-476.72,0.00026301,2]
[363195983,1748619160972,-726.29,0.00026301,2]
[363195984,1748619160981,-1013.34,0.00026301,2]
[363195985,1748619160991,-850.36,0.00026301,2]
[363195986,1748619161000,-9498.11,0.00026301,2]
[363195987,1748619161010,-829.87,0.00026301,2]
[363195988,1748619161019,-1568.21,0.00026301,2]
[363195989,1748619161028,-997.73,0.00026301,2]
[363195990,1748619161038,-717.62,0.00026301,2]
[363195991,1748619161048,-862.79,0.00026301,2]
[363195992,1748619161057,-657.91,0.00026301,2]
[363195993,1748619161068,-985.32,0.00026301,2]
[363195994,1748619161077,-2137.81,0.00026301,2]
[363195995,1748619161086,-420.0,0.00026301,2]
[363195996,1748619161095,-420.0,0.00026301,2]
[363195997,1748619161105,-541.52,0.00026301,2]
[363195998,1748619161115,-1399.41,0.00026301,2]
[363195999,1748619161124,-1150.73,0.00026301,2]
[363196000,1748619161133,-420.0,0.00026301,2]
[363196001,1748619161142,-2296.95,0.00026301,2]
[363196002,1748619161152,-682.72,0.00026301,2]
[363196003,1748619161161,-795.59,0.00026301,2]
[363196004,1748619161171,-575.16,0.00026301,2]
[363196005,1748619161181,-3116.89,0.00026301,2]
[363196006,1748619161191,-1061.77,0.00026301,2]
[363196007,1748619161200,-1233.85,0.00026301,2]
[363196008,1748619161209,-420.0,0.00026301,2]
[363196009,1748619161218,-11481.25,0.00026301,2]
[363196010,1748619161227,-426.85,0.00026301,2]
[363196011,1748619161237,-1096.82,0.00026301,2]
[363196012,1748619161246,-857.17,0.00026301,2]
[363196013,1748619161256,-1626.19,0.00026301,2]
[363196014,1748619161265,-634.02,0.00026301,2]
[363196015,1748619161275,-1507.45,0.00026301,2]
[363196016,1748619161284,-1283.49,0.00026301,2]
[363196017,1748619161294,-441.96,0.00026301,2]
[363196018,1748619161303,-532.67,0.00026301,2]
[363196019,1748619161312,-1018.57,0.00026301,2]
[363196020,1748619161324,-3197.32,0.00026301,2]
[363196021,1748619161333,-1122.87,0.00026301,2]
[363196022,1748619161342,-2066.87,0.00026301,2]
[363196023,1748619161351,-489.48,0.00026301,2]
[363196024,1748619161361,-461.31,0.00026301,2]
[363196025,1748619161370,-429.62,0.00026301,2]
[363196026,1748619161380,-3670.01,0.00026301,2]
[363196027,1748619161390,-805.58,0.00026301,2]
[363196028,1748619161400,-1386.9,0.00026301,2]
[363196029,1748619161409,-894.1,0.00026301,2]
[363196030,1748619161418,-2960.24,0.00026301,2]
[363196031,1748619161427,-1963.11,0.00026301,2]
[363196032,1748619161437,-906.34,0.00026301,2]